fUST/lending_fUST_20250924
["ID","MTS","AMOUNT","RATE_DAILY","PERIOD"]
[387359827,1758703843038,-485.56264867,0.00019513,2]
[387359828,1758703843047,-480.0,0.00019513,2]
[387359829,1758703843057,-570.44,0.00019513,2]
[387359830,1758703843067,-403.28017414,0.00019513,2]
[387359831,1758703843076,-1614.53,0.00019513,2]
[387359832,1758703843086,-2958.7,0.00019513,2]
[387359833,1758703843096,-480.0,0.00019513,2]
[387359834,1758703843105,-480.0,0.00019514,2]
[387359835,1758703843115,-539.58197542,0.00019514,2]
[387359836,1758703843127,-480.0,0.00019515,2]
[387359837,1758703843137,-496.98,0.00019515,2]
[387359838,1758703843146,-480.0,0.00019593,2]
[387359840,1758703843155,-480.0,0.00019593,2]
[387359841,1758703843165,-480.0,0.00019593,2]
[387359842,1758703843175,-151.0,0.00019593,2]
[387359844,1758703843184,-480.0,0.00019593,2]
[387359846,1758703843195,-266.79692547,0.00019593,2]
[387359848,1758703843204,-480.0,0.00019593,2]
[387359850,1758703843214,-684.92,0.00019593,2]
[387359852,1758703843224,-187.18132043,0.00019607,2]
[387359854,1758703843234,-500.0,0.00019642,2]
[387359856,1758703843244,-500.0,0.00019642,2]
[387359858,1758703843253,-10566.6382973,0.00019671,2]
[387359860,1758703843263,-151.0,0.00019671,2]
[387359862,1758703843272,-334.27914084,0.0001977,2]
[387359864,1758703843281,-480.0,0.0001977,2]
[387359866,1758703843291,-480.0,0.0001977,2]
[387359868,1758703843300,-480.0,0.0001977,2]
[387359870,1758703843311,-480.0,0.0001977,2]
[387359872,1758703843321,-480.0,0.0001977,2]
[387359874,1758703843331,-480.0,0.0001977,2]
[387359876,1758703843341,-480.0,0.0001977,2]
[387359878,1758703843350,-1393.08,0.0001977,2]
[387359880,1758703843360,-480.0,0.0001977,2]
[387359882,1758703843369,-2075.97,0.0001977,2]
[387359884,1758703843378,-480.0,0.0001977,2]
[387359886,1758703843387,-480.0,0.0001977,2]
[387359888,1758703843396,-480.0,0.0001977,2]
[387359890,1758703843405,-480.0,0.0001977,2]
[387359892,1758703843415,-480.0,0.0001977,2]
[387359894,1758703843424,-365.95855477,0.0001977,2]
[387359896,1758703843436,-751.19,0.0001977,2]
[387359898,1758703843446,-480.0,0.0001977,2]
[387359900,1758703843455,-788.88,0.0001977,2]
[387359902,1758703843464,-480.0,0.0001977,2]
[387359904,1758703843474,-480.0,0.0001977,2]
[387359906,1758703843484,-480.0,0.0001977,2]
[387359908,1758703843493,-480.0,0.0001977,2]
[387359910,1758703843503,-480.0,0.0001977,2]
[387359912,1758703843513,-480.0,0.0001977,2]
[387359913,1758703843522,-524.79,0.0001977,2]
[387359915,1758703843532,-480.0,0.0001977,2]
[387359917,1758703843542,-513.41,0.0001977,2]
[387359919,1758703843551,-480.0,0.0001977,2]
[387359921,1758703843561,-480.0,0.0001977,2]
[387359923,1758703843570,-480.0,0.0001977,2]
[387359925,1758703843579,-480.0,0.0001977,2]
[387359927,1758703843588,-480.0,0.0001977,2]
[387359929,1758703843597,-480.0,0.0001977,2]
[387359931,1758703843606,-480.0,0.0001977,2]
[387359933,1758703843616,-480.0,0.0001977,2]
[387359935,1758703843625,-173.94343468,0.0001977,2]
[387359937,1758703843635,-480.0,0.0001977,2]
[387359939,1758703843644,-480.0,0.0001977,2]
[387359941,1758703843653,-480.0,0.0001977,2]
[387359943,1758703843663,-480.0,0.0001977,2]
[387359945,1758703843672,-480.0,0.0001977,2]
[387359947,1758703843682,-726.48,0.0001977,2]
[387359949,1758703843691,-549.79,0.0001977,2]
[387359951,1758703843701,-480.0,0.0001977,2]
[387359953,1758703843710,-557.31,0.0001977,2]
[387359955,1758703843719,-480.0,0.0001977,2]
[387359957,1758703843728,-939.03,0.0001977,2]
[387359959,1758703843738,-480.0,0.0001977,2]
[387359961,1758703843747,-480.0,0.0001977,2]
[387359963,1758703843756,-454.53372434,0.0001977,2]
[387359965,1758703843766,-480.0,0.0001977,2]
[387359967,1758703843776,-480.0,0.0001977,2]
[387359969,1758703843785,-480.0,0.0001977,2]
[387359971,1758703843795,-554.52,0.0001977,2]
[387359973,1758703843804,-500.0,0.00019771,2]
[387359975,1758703843814,-480.0,0.00019771,2]
[387359977,1758703843823,-480.0,0.00019771,2]
[387359979,1758703843833,-480.0,0.00019771,2]
[387359981,1758703843842,-480.0,0.00019771,2]
[387359983,1758703843853,-387.77647743,0.00019771,2]
[387359985,1758703843862,-480.0,0.00019771,2]
[387359987,1758703843872,-480.0,0.00019771,2]
[387359989,1758703843882,-480.0,0.00019771,2]
[387359991,1758703843891,-554.23979426,0.00019771,2]
[387359993,1758703843901,-480.0,0.00019771,2]
[387359995,1758703843911,-577.3,0.00019771,2]
[387359996,1758703843921,-480.0,0.00019771,2]
[387359998,1758703843930,-480.0,0.00019771,2]
[387360000,1758703843940,-480.0,0.00019771,2]
[387360002,1758703843950,-480.0,0.00019771,2]
[387360004,1758703843959,-480.0,0.00019771,2]
[387360006,1758703843969,-198.55,0.00019771,2]
[387360008,1758703843979,-480.0,0.00019771,2]
[387360010,1758703843988,-480.0,0.00019771,2]
[387360012,1758703843997,-480.0,0.00019771,2]
[387360014,1758703844011,-480.0,0.00019771,2]
[387360016,1758703844019,-572.18992007,0.00019771,2]
[387360018,1758703844029,-480.0,0.00019771,2]
[387360020,1758703844038,-480.0,0.00019771,2]
[387360022,1758703844047,-480.0,0.00019771,2]
[387360024,1758703844057,-480.0,0.00019771,2]
[387360026,1758703844067,-480.0,0.00019771,2]
[387360028,1758703844076,-480.0,0.00019771,2]
[387360030,1758703844085,-480.0,0.00019771,2]
[387360032,1758703844095,-480.0,0.00019771,2]
[387360034,1758703844104,-480.0,0.00019786,2]
[387360044,1758703844187,-480.0,0.00019786,2]
[387360046,1758703844199,-1292.22,0.00019786,2]
[387360048,1758703844211,-525.81,0.00019786,2]
[387360049,1758703844220,-653.34,0.00019786,2]
[387360051,1758703844230,-480.0,0.00019786,2]
[387360054,1758703844239,-480.0,0.00019786,2]
[387360056,1758703844249,-480.0,0.00019786,2]
[387360058,1758703844260,-1769.95,0.00019786,2]
[387360060,1758703844269,-480.0,0.00019786,2]
[387360062,1758703844278,-185.482885,0.00019786,2]
[387360064,1758703844287,-640.54,0.00019786,2]
[387360066,1758703844297,-622.13214251,0.00019786,2]
[387360068,1758703844306,-151.0,0.00019787,2]
[387360069,1758703844315,-151.0,0.00019787,2]
[387360072,1758703844324,-151.0,0.00019787,2]
[387360073,1758703844333,-480.0,0.00019787,2]
[387360076,1758703844348,-570.44,0.00019787,2]
[387360078,1758703844359,-1614.53,0.00019787,2]
[387360080,1758703844368,-2958.7,0.00019787,2]
[387360081,1758703844378,-480.0,0.00019787,2]
[387360083,1758703844387,-490.72479297,0.00019788,2]
[387360085,1758703844397,-496.98,0.00019789,2]
[387360087,1758703844406,-500.0,0.00019811,2]
[387360089,1758703844416,-500.0,0.00019811,2]
[387360091,1758703844425,-1000.0,0.00019821,2]
[387360094,1758703844436,-783.70442496,0.00019821,2]
[387360096,1758703844446,-480.0,0.00019867,2]
[387360098,1758703844456,-480.0,0.00019867,2]
[387360100,1758703844465,-480.0,0.00019867,2]
[387360102,1758703844474,-480.0,0.00019867,2]
[387360104,1758703844484,-480.0,0.00019867,2]
[387360106,1758703844493,-684.92,0.00019867,2]
[387360108,1758703844502,-521.20630445,0.00019886,2]
[387360110,1758703844515,-2235.8391469,0.000199,2]
[387360112,1758703844524,-488.95304633,0.00019919,2]
[387360114,1758703844534,-1955.81218533,0.00019919,2]
[387360116,1758703844543,-4400.57741699,0.00019919,2]
[387360118,1758703844553,-7815.42549258,0.00019919,2]
[387360120,1758703844562,-500.0,0.0001996,2]
[387360121,1758703844572,-500.0,0.0001996,2]
[387360123,1758703844581,-500.0,0.0001996,2]
[387360125,1758703844590,-500.0,0.00019977,2]
[387360127,1758703844599,-500.0,0.00019977,2]
[387360129,1758703844608,-366.57934165,0.00019977,2]
[387360131,1758703844617,-506.42210844,0.00019977,2]
[387360133,1758703844626,-500.0,0.00019977,2]
[387360135,1758703844636,-506.39719463,0.00019977,2]
[387360137,1758703844646,-500.73192138,0.00019977,2]
[387360139,1758703844655,-500.0,0.00019977,2]
[387360141,1758703844664,-500.0,0.00019977,2]
[387360143,1758703844674,-500.0,0.00019977,2]
[387360145,1758703844683,-160.0,0.0002,3]
[387360147,1758703844692,-492.46005353,0.00020044,2]
[387360149,1758703844701,-340.38828872,0.00020044,2]
[387360151,1758703844711,-480.0,0.00020044,2]
[387360153,1758703844720,-480.0,0.00020044,2]
[387360155,1758703844729,-480.0,0.00020044,2]
[387360157,1758703844738,-480.0,0.00020044,2]
[387360159,1758703844748,-480.0,0.00020044,2]
[387360161,1758703844759,-1393.08,0.00020044,2]
[387360163,1758703844768,-480.0,0.00020044,2]
[387360165,1758703844777,-2075.97,0.00020044,2]
[387360167,1758703844786,-480.0,0.00020044,2]
[387360169,1758703844796,-480.0,0.00020044,2]
[387360171,1758703844805,-480.0,0.00020044,2]
[387360173,1758703844815,-751.19,0.00020044,2]
[387360175,1758703844824,-480.0,0.00020044,2]
[387360177,1758703844834,-788.88,0.00020044,2]
[387360179,1758703844844,-480.0,0.00020044,2]
[387360181,1758703844853,-480.0,0.00020044,2]
[387360183,1758703844862,-480.0,0.00020044,2]
[387360185,1758703844872,-480.0,0.00020044,2]
[387360187,1758703844881,-480.0,0.00020044,2]
[387360189,1758703844891,-480.0,0.00020044,2]
[387360191,1758703844901,-524.79,0.00020044,2]
[387360193,1758703844911,-480.0,0.00020044,2]
[387360195,1758703844921,-480.0,0.00020044,2]
[387360197,1758703844931,-480.0,0.00020044,2]
[387360199,1758703844940,-480.0,0.00020044,2]
[387360201,1758703844950,-480.0,0.00020044,2]
[387360203,1758703844959,-480.0,0.00020044,2]
[387360205,1758703844968,-480.0,0.00020044,2]
[387360207,1758703844978,-480.0,0.00020044,2]
[387360209,1758703844988,-462.18141502,0.00020044,2]
[387360211,1758703844997,-480.0,0.00020044,2]
[387360213,1758703845010,-480.0,0.00020044,2]
[387360215,1758703845020,-480.0,0.00020044,2]
[387360217,1758703845029,-480.0,0.00020044,2]
[387360218,1758703845039,-480.0,0.00020044,2]
[387360220,1758703845049,-726.48,0.00020044,2]
[387360222,1758703845059,-549.79,0.00020044,2]
[387360224,1758703845068,-480.0,0.00020044,2]
[387360226,1758703845077,-557.31,0.00020044,2]
[387360228,1758703845087,-480.0,0.00020044,2]
[387360230,1758703845096,-939.03,0.00020044,2]
[387360232,1758703845106,-480.0,0.00020044,2]
[387360234,1758703845116,-480.0,0.00020044,2]
[387360237,1758703845129,-480.0,0.00020044,2]
[387360239,1758703845138,-480.0,0.00020044,2]
[387360240,1758703845147,-480.0,0.00020044,2]
[387360243,1758703845158,-554.52,0.00020044,2]
[387360245,1758703845167,-500.0,0.00020045,2]
[387360247,1758703845176,-480.0,0.00020045,2]
[387360249,1758703845186,-480.0,0.00020045,2]
[387360250,1758703845195,-480.0,0.00020045,2]
[387360252,1758703845204,-246.00716045,0.00020045,2]
[387360254,1758703845214,-297.86334668,0.00020045,2]
[387360256,1758703845223,-480.0,0.00020045,2]
[387360258,1758703845232,-480.0,0.00020045,2]
[387360260,1758703845241,-577.3,0.00020045,2]
[387360262,1758703845251,-480.0,0.00020045,2]
[387360264,1758703845263,-480.0,0.00020045,2]
[387360266,1758703845272,-480.0,0.00020045,2]
[387360268,1758703845282,-480.0,0.00020045,2]
[387360270,1758703845291,-300.61702569,0.00020045,2]
[387360272,1758703845300,-480.0,0.00020045,2]
[387360274,1758703845309,-480.0,0.00020045,2]
[387360276,1758703845318,-515.2,0.00020045,2]
[387360278,1758703845328,-480.0,0.00020045,2]
[387360280,1758703845337,-480.0,0.00020045,2]
[387360282,1758703845348,-480.0,0.00020045,2]
[387360284,1758703845357,-480.0,0.00020045,2]
[387360286,1758703845367,-480.0,0.00020045,2]
[387360288,1758703845378,-239.62997964,0.00020045,2]
[387360290,1758703845387,-480.0,0.00020045,2]
[387360292,1758703845397,-151.0,0.0002006,2]
[387360294,1758703845407,-480.0,0.0002006,2]
[387360296,1758703845417,-1292.22,0.0002006,2]
[387360298,1758703845426,-653.34,0.0002006,2]
[387360300,1758703845435,-480.0,0.0002006,2]
[387360302,1758703845445,-428.75190137,0.0002006,2]
[387360304,1758703845455,-480.0,0.0002006,2]
[387360306,1758703845465,-1769.95,0.0002006,2]
[387360308,1758703845475,-480.0,0.0002006,2]
[387360310,1758703845485,-640.54,0.0002006,2]
[387360313,1758703845495,-198.0,0.00020061,2]
[387360314,1758703845505,-151.0,0.00020061,2]
[387360316,1758703845516,-480.0,0.00020061,2]
[387360319,1758703845526,-570.44,0.00020061,2]
[387360321,1758703845535,-1614.53,0.00020061,2]
[387360323,1758703845545,-2958.7,0.00020061,2]
[387360325,1758703845554,-480.0,0.00020061,2]
[387360327,1758703845564,-496.98,0.00020063,2]
[387360329,1758703845573,-480.0,0.00020141,2]
[387360331,1758703845582,-480.0,0.00020141,2]
[387360333,1758703845592,-480.0,0.00020141,2]
[387360334,1758703845601,-684.92,0.00020141,2]
[387360335,1758703845611,-492.42839823,0.00020157,2]
[387360336,1758703845621,-500.0,0.0002019,2]
[387360337,1758703845631,-480.0,0.00020318,2]
[387360338,1758703845641,-480.0,0.00020318,2]
[387360339,1758703845650,-566.46360085,0.00020318,2]
[387360340,1758703845659,-480.0,0.00020318,2]
[387360341,1758703845668,-480.0,0.00020318,2]
[387360342,1758703845678,-1393.08,0.00020318,2]
[387360343,1758703845687,-480.0,0.00020318,2]
[387360345,1758703845696,-2075.97,0.00020318,2]
[387360347,1758703845705,-480.0,0.00020318,2]
[387360349,1758703845714,-480.0,0.00020318,2]
[387360351,1758703845723,-288.02002973,0.00020318,2]
[387360353,1758703845732,-751.19,0.00020318,2]
[387360355,1758703845742,-173.94217368,0.00020318,2]
[387360357,1758703845752,-788.88,0.00020318,2]
[387360359,1758703845763,-480.0,0.00020318,2]
[387360361,1758703845773,-480.0,0.00020318,2]
[387360363,1758703845783,-480.0,0.00020318,2]
[387360365,1758703845792,-480.0,0.00020318,2]
[387360367,1758703845803,-480.0,0.00020318,2]
[387360369,1758703845812,-506.89163456,0.00020318,2]
[387360371,1758703845822,-524.79,0.00020318,2]
[387360373,1758703845831,-487.2,0.00020318,2]
[387360375,1758703845840,-480.0,0.00020318,2]
[387360377,1758703845849,-494.7559285,0.00020318,2]
[387360379,1758703845860,-480.0,0.00020318,2]
[387360381,1758703845869,-480.0,0.00020318,2]
[387360383,1758703845878,-480.0,0.00020318,2]
[387360385,1758703845888,-480.0,0.00020318,2]
[387360387,1758703845898,-480.0,0.00020318,2]
[387360389,1758703845907,-480.0,0.00020318,2]
[387360391,1758703845917,-480.0,0.00020318,2]
[387360393,1758703845927,-480.0,0.00020318,2]
[387360395,1758703845937,-726.48,0.00020318,2]
[387360397,1758703845947,-549.79,0.00020318,2]
[387360399,1758703845956,-480.0,0.00020318,2]
[387360409,1758703846029,-557.31,0.00020318,2]
[387360411,1758703846048,-505.6604333,0.00020318,2]
[387360413,1758703846059,-939.03,0.00020318,2]
[387360416,1758703846072,-480.0,0.00020318,2]
[387360418,1758703846082,-480.0,0.00020318,2]
[387360420,1758703846092,-480.0,0.00020318,2]
[387360422,1758703846102,-480.0,0.00020318,2]
[387360423,1758703846111,-480.0,0.00020318,2]
[387360425,1758703846126,-554.52,0.00020318,2]
[387360427,1758703846136,-500.0,0.00020319,2]
[387360429,1758703846145,-480.0,0.00020319,2]
[387360431,1758703846155,-480.0,0.00020319,2]
[387360433,1758703846165,-480.0,0.00020319,2]
[387360435,1758703846175,-480.0,0.00020319,2]
[387360437,1758703846184,-480.0,0.00020319,2]
[387360439,1758703846194,-577.3,0.00020319,2]
[387360441,1758703846204,-480.0,0.00020319,2]
[387360443,1758703846214,-480.0,0.00020319,2]
[387360445,1758703846223,-480.0,0.00020319,2]
[387360448,1758703846233,-480.0,0.00020319,2]
[387360450,1758703846243,-480.0,0.00020319,2]
[387360452,1758703846252,-480.0,0.00020319,2]
[387360454,1758703846263,-480.0,0.00020319,2]
[387360456,1758703846272,-480.0,0.00020319,2]
[387360458,1758703846281,-480.0,0.00020319,2]
[387360460,1758703846290,-167.27283993,0.00020319,2]
[387360462,1758703846300,-480.0,0.00020319,2]
[387360464,1758703846310,-480.0,0.00020334,2]
[387360466,1758703846319,-1292.22,0.00020334,2]
[387360468,1758703846329,-653.34,0.00020334,2]
[387360470,1758703846338,-222.64969358,0.00020334,2]
[387360472,1758703846348,-480.0,0.00020334,2]
[387360474,1758703846358,-1769.95,0.00020334,2]
[387360476,1758703846367,-480.0,0.00020334,2]
[387360478,1758703846376,-640.54,0.00020334,2]
[387360480,1758703846385,-151.0,0.00020335,2]
[387360482,1758703846395,-489.77199478,0.00020335,2]
[387360484,1758703846404,-570.44,0.00020335,2]
[387360486,1758703846414,-1614.53,0.00020335,2]
[387360488,1758703846423,-2958.7,0.00020335,2]
[387360490,1758703846432,-283.23094233,0.00020335,2]
[387360492,1758703846441,-496.98,0.00020337,2]
[387360493,1758703846450,-3877.61,0.00020344,2]
[387360495,1758703846460,-1000.0,0.00020359,2]
[387360497,1758703846469,-1514.1776107,0.00020368,2]
[387360499,1758703846478,-480.0,0.00020415,2]
[387360501,1758703846487,-480.0,0.00020415,2]
[387360503,1758703846496,-480.0,0.00020415,2]
[387360505,1758703846506,-684.92,0.00020415,2]
[387360507,1758703846516,-521.20630445,0.00020454,2]
[387360509,1758703846526,-500.0,0.00020508,2]
[387360511,1758703846535,-1000.0,0.00020508,2]
[387360513,1758703846545,-500.0,0.00020508,2]
[387360516,1758703846555,-1000.0,0.00020525,2]
[387360518,1758703846564,-183.09612358,0.00020525,2]
[387360520,1758703846574,-1000.0,0.00020525,2]
[387360522,1758703846585,-1000.0,0.00020525,2]
[387360524,1758703846594,-500.0,0.00020525,2]
[387360526,1758703846604,-928.31183169,0.00020579,2]
[387360528,1758703846613,-480.0,0.00020592,2]
[387360530,1758703846623,-480.0,0.00020592,2]
[387360532,1758703846632,-480.0,0.00020592,2]
[387360534,1758703846642,-480.0,0.00020592,2]
[387360536,1758703846651,-1393.08,0.00020592,2]
[387360538,1758703846661,-480.0,0.00020592,2]
[387360540,1758703846670,-2075.97,0.00020592,2]
[387360542,1758703846679,-480.0,0.00020592,2]
[387360544,1758703846688,-480.0,0.00020592,2]
[387360546,1758703846700,-751.19,0.00020592,2]
[387360548,1758703846710,-788.88,0.00020592,2]
[387360550,1758703846720,-480.0,0.00020592,2]
[387360551,1758703846730,-480.0,0.00020592,2]
[387360554,1758703846740,-480.0,0.00020592,2]
[387360556,1758703846750,-480.0,0.00020592,2]
[387360558,1758703846761,-524.79,0.00020592,2]
[387360560,1758703846771,-480.0,0.00020592,2]
[387360562,1758703846780,-480.0,0.00020592,2]
[387360564,1758703846790,-480.0,0.00020592,2]
[387360566,1758703846800,-480.0,0.00020592,2]
[387360568,1758703846809,-480.0,0.00020592,2]
[387360570,1758703846819,-480.0,0.00020592,2]
[387360572,1758703846828,-480.0,0.00020592,2]
[387360574,1758703846837,-480.0,0.00020592,2]
[387360576,1758703846847,-480.0,0.00020592,2]
[387360578,1758703846857,-726.48,0.00020592,2]
[387360580,1758703846867,-549.79,0.00020592,2]
[387360582,1758703846876,-480.0,0.00020592,2]
[387360584,1758703846885,-557.31,0.00020592,2]
[387360586,1758703846897,-939.03,0.00020592,2]
[387360588,1758703846906,-480.0,0.00020592,2]
[387360590,1758703846916,-480.0,0.00020592,2]
[387360592,1758703846925,-480.0,0.00020592,2]
[387360594,1758703846934,-480.0,0.00020592,2]
[387360596,1758703846943,-554.52,0.00020592,2]
[387360598,1758703846953,-500.0,0.00020593,2]
[387360600,1758703846962,-150.11122862,0.00020593,2]
[387360602,1758703846971,-480.0,0.00020593,2]
[387360604,1758703846980,-480.0,0.00020593,2]
[387360606,1758703846990,-303.24380577,0.00020593,2]
[387360608,1758703846999,-577.3,0.00020593,2]
[387360610,1758703847008,-480.0,0.00020593,2]
[387360612,1758703847018,-480.0,0.00020593,2]
[387360613,1758703847027,-480.0,0.00020593,2]
[387360616,1758703847037,-480.0,0.00020593,2]
[387360617,1758703847046,-480.0,0.00020593,2]
[387360620,1758703847056,-480.0,0.00020593,2]
[387360622,1758703847066,-480.0,0.00020593,2]
[387360624,1758703847075,-480.0,0.00020593,2]
[387360626,1758703847084,-290.27286449,0.00020593,2]
[387360627,1758703847093,-480.0,0.00020593,2]
[387360630,1758703847104,-1060.18,0.00020608,2]
[387360632,1758703847113,-480.0,0.00020608,2]
[387360634,1758703847126,-1292.22,0.00020608,2]
[387360636,1758703847135,-653.34,0.00020608,2]
[387360638,1758703847145,-480.0,0.00020608,2]
[387360640,1758703847155,-1769.95,0.00020608,2]
[387360642,1758703847164,-480.0,0.00020608,2]
[387360644,1758703847174,-640.54,0.00020608,2]
[387360646,1758703847183,-243.05524047,0.00020609,2]
[387360648,1758703847192,-570.44,0.00020609,2]
[387360650,1758703847203,-1614.53,0.00020609,2]
[387360652,1758703847213,-2958.7,0.00020609,2]
[387360654,1758703847222,-496.98,0.00020611,2]
[387360656,1758703847231,-480.0,0.00020689,2]
[387360658,1758703847240,-480.0,0.00020689,2]
[387360660,1758703847250,-684.92,0.00020689,2]
[387360662,1758703847259,-266.59958279,0.00020712,2]
[387360663,1758703847268,-480.0,0.00020866,2]
[387360666,1758703847279,-480.0,0.00020866,2]
[387360668,1758703847288,-480.0,0.00020866,2]
[387360670,1758703847298,-480.0,0.00020866,2]
[387360672,1758703847307,-1393.08,0.00020866,2]
[387360674,1758703847316,-480.0,0.00020866,2]
[387360676,1758703847326,-2075.97,0.00020866,2]
[387360678,1758703847335,-628.56985989,0.00020866,2]
[387360680,1758703847344,-480.0,0.00020866,2]
[387360682,1758703847354,-751.19,0.00020866,2]
[387360684,1758703847364,-788.88,0.00020866,2]
[387360686,1758703847374,-480.0,0.00020866,2]
[387360688,1758703847383,-480.0,0.00020866,2]
[387360690,1758703847396,-480.0,0.00020866,2]
[387360692,1758703847412,-480.0,0.00020866,2]
[387360694,1758703847421,-524.79,0.00020866,2]
[387360696,1758703847430,-480.0,0.00020866,2]
[387360698,1758703847439,-174.52087303,0.00020866,2]
[387360700,1758703847448,-480.0,0.00020866,2]
[387360702,1758703847458,-597.98,0.00020866,2]
[387360704,1758703847468,-464.25802383,0.00020866,2]
[387360706,1758703847477,-429.48271053,0.00020866,2]
[387360708,1758703847486,-480.0,0.00020866,2]
[387360710,1758703847495,-480.0,0.00020866,2]
[387360712,1758703847504,-480.0,0.00020866,2]
[387360714,1758703847514,-726.48,0.00020866,2]
[387360716,1758703847523,-549.79,0.00020866,2]
[387360718,1758703847533,-480.0,0.00020866,2]
[387360720,1758703847542,-557.31,0.00020866,2]
[387360722,1758703847551,-939.03,0.00020866,2]
[387360724,1758703847560,-480.0,0.00020866,2]
[387360726,1758703847569,-480.0,0.00020866,2]
[387360728,1758703847578,-480.0,0.00020866,2]
[387360730,1758703847587,-480.0,0.00020866,2]
[387360732,1758703847596,-554.52,0.00020866,2]
[387360734,1758703847606,-500.0,0.00020867,2]
[387360736,1758703847615,-480.0,0.00020867,2]
[387360738,1758703847624,-577.3,0.00020867,2]
[387360741,1758703847634,-480.0,0.00020867,2]
[387360742,1758703847643,-480.0,0.00020867,2]
[387360744,1758703847652,-480.0,0.00020867,2]
[387360746,1758703847661,-480.0,0.00020867,2]
[387360748,1758703847670,-480.0,0.00020867,2]
[387360758,1758703847745,-480.0,0.00020867,2]
[387360760,1758703847755,-480.0,0.00020867,2]
[387360762,1758703847765,-480.0,0.00020867,2]
[387360764,1758703847774,-480.0,0.00020882,2]
[387360766,1758703847784,-1292.22,0.00020882,2]
[387360768,1758703847793,-653.34,0.00020882,2]
[387360770,1758703847803,-480.0,0.00020882,2]
[387360772,1758703847812,-1769.95,0.00020882,2]
[387360774,1758703847821,-480.0,0.00020882,2]
[387360776,1758703847831,-640.54,0.00020882,2]
[387360778,1758703847841,-570.44,0.00020883,2]
[387360780,1758703847850,-1614.53,0.00020883,2]
[387360782,1758703847859,-2958.7,0.00020883,2]
[387360784,1758703847869,-496.98,0.00020885,2]
[387360786,1758703847879,-500.0,0.00020907,2]
[387360788,1758703847888,-420.0,0.00020945,2]
[387360790,1758703847897,-480.0,0.00020963,2]
[387360792,1758703847906,-480.0,0.00020963,2]
[387360794,1758703847915,-684.92,0.00020963,2]
[387360796,1758703847928,-3000.0,0.00020966,2]
[387360798,1758703847937,-341.82742117,0.00020967,2]
[387360800,1758703847947,-1365.942375,0.00020967,2]
[387360802,1758703847956,-2235.83914667,0.00020972,2]
[387360804,1758703847966,-949.0,0.00021,2]
[387360806,1758703847975,-521.20630445,0.00021021,2]
[387360808,1758703847984,-1500.0,0.00021056,2]
[387360810,1758703847993,-500.0,0.00021073,2]
[387360812,1758703848003,-500.0,0.00021073,2]
[387360814,1758703848015,-500.0,0.00021073,2]
[387360816,1758703848025,-480.0,0.0002114,2]
[387360818,1758703848035,-480.0,0.0002114,2]
[387360820,1758703848045,-500.34223849,0.0002114,2]
[387360822,1758703848054,-480.0,0.0002114,2]
[387360824,1758703848064,-1393.08,0.0002114,2]